Cogmind - Beta 13 *** ADVENTURER MODE // 2024.07.29 @ 13:24:15 Player: Jefffff Result: Self-destructed Performance ------------- Evolutions (2) 1000 Regions Visited (3) 600 Robots Destroyed (31) 155 Value Destroyed (888) 888 Prototype IDs (1) 20 Alien Tech Used (0) 0 Bonus (0) 0 TOTAL SCORE: 2663 Bonus ------- None Cogmind --------- Core Integrity 73/550 Matter 265/300 Energy 29/100 System Corruption 0% Temperature Cool (69) Movement Core (200) Ox3 Location -8/Materials Parts ------- > --- POWER (1) -------- (None) > --- PROPULSION (4) --- (None) > --- UTILITY (4) ------ High-capacity Storage Unit Advanced Weight Redist. System Signal Interpreter Propulsion Shielding > --- WEAPON (2) ------- (None) > --- INVENTORY (20) --- Ion Engine Light Nuclear Core Improved Heat Sink Improved Heat Sink Medium Matter Pod (69) Visual Processing Unit Signal Interpreter Improved Targeting Computer Advanced ECM Suite Propulsion Shielding Propulsion Shielding Propulsion Shielding Medium Reactive Plating Medium Reactive Plating Tractor Beam Medium Laser Small Laser Light Cannon Remote Datajack Power Maul Peak State ------------ > --- POWER ------------ Light Nuclear Core > --- PROPULSION ------- Aluminum Leg Aluminum Leg Aluminum Leg > --- UTILITY ---------- High-capacity Storage Unit Advanced Weight Redist. System Signal Interpreter Propulsion Shielding > --- WEAPON ----------- Shock Rifle Power Maul > --- INVENTORY -------- Ion Engine Light Nuclear Core Improved Heat Sink Improved Heat Sink Medium Matter Pod Visual Processing Unit Signal Interpreter Improved Targeting Computer Propulsion Shielding Propulsion Shielding Propulsion Shielding Medium Reactive Plating Medium Reactive Plating Tractor Beam Heavy EM Shotgun Medium Laser Small Laser Light Cannon Remote Datajack Power Maul [Rating: 23] Favorites ----------- Power Improved Ion Engine Engine Improved Ion Engine Power Core Light Nuclear Core Propulsion Aluminum Leg Leg Aluminum Leg Wheel Wheel Utility Weight Redist. System Device Weight Redist. System Storage High-capacity Storage Unit Processor Signal Interpreter Protection Propulsion Shielding Weapon Light Assault Rifle Energy Gun Small Laser Ballistic Gun Light Assault Rifle Launcher Grenade Launcher Impact Weapon Maul Build | -11 -10 -9 -8 ------- Run | Yrd Mat Mat Mat Slots Evolved 4 | . . 2 2 Power . | . . . . Propulsion 2 | . . . 2 Utility 2 | . . 2 . Weapon . | . . . . Parts Attached 41 | 6 7 11 17 Power 5 | 1 1 2 1 Engine 4 | 1 1 2 . Core 1 | . . . 1 Reactor . | . . . . Propulsion 10 | 2 2 3 3 Treads . | . . . . Leg 6 | . . 3 3 Wheel 4 | 2 2 . . Hover . | . . . . Flight . | . . . . Utility 10 | 1 3 3 3 Device 2 | . 1 . 1 Storage 3 | 1 2 . . Processor 2 | . . 2 . Hackware . | . . . . Protection 3 | . . 1 2 Artifact . | . . . . Weapon 16 | 2 1 3 10 Energy Gun 6 | . . 1 5 Energy Cannon . | . . . . Ballistic Gun 4 | 2 1 1 . Ballistic Cannon . | . . . . Launcher 2 | . . . 2 Special Weapon . | . . . . Impact Weapon 4 | . . 1 3 Slashing Weapon . | . . . . Piercing Weapon . | . . . . Special Melee Weapon . | . . . . Unidentified Prototypes 1 | . . . 1 Parts Lost 14 | . . 2 12 Power 2 | . . . 2 Propulsion 6 | . . 1 5 Utility . | . . . . Weapon 6 | . . 1 5 Highest Loss Streak 8 | . . 2 8 To Critical Strikes . | . . . . Average Slot Usage (%) 91 | . 95 94 80 Engine 9 | . 14 11 2 Core 1 | . . . 5 Leg 14 | . . 17 21 Wheel 8 | . 28 4 . Device 10 | . 10 11 9 Storage 11 | . 14 11 9 Processor 8 | . . 10 9 Protection 5 | . . 6 5 Energy Gun 3 | . . 4 6 Ballistic Gun 13 | . 27 13 1 Impact Weapon 4 | . . 4 8 Naked Turns . | . . . . Heaviest Build 53 | 11 47 52 53 Greatest Support 39 | 20 32 32 39 Greatest Overweight (x) 3 | . 1 2 3 Average Overweight (x) . | . . 1 1 Largest Inventory Capacity 20 | 8 20 20 20 Average Capacity 17 | 6 10 20 20 Most Carried 20 | 2 13 20 20 Average Carried 15 | 1 7 18 19 Final Capacity 20 | 8 20 20 20 Final Carried 20 | 2 13 20 20 Class Distribution -------------------- 61% | Scavenger-Mutant 38% | Mutant Dominant Class ---------------- Mutant | -10/Materials Scavenger-Mutant | -9/Materials Scavenger-Mutant | -8/Materials Resources | -11 -10 -9 -8 ----------- Run | Yrd Mat Mat Mat Matter Collected 805 | 171 237 207 190 Remotely . | . . . . Salvage Created 1230 | . 266 484 480 Parts 71 | . 16 29 26 Haulers Intercepted 2 | . 2 . . Recyclers Shooed 2 | . 1 1 . Parts Field Recycled . | . . . . Retrieved Matter . | . . . . Parts Self-Destructed . | . . . . Prevented . | . . . . Kills | -11 -10 -9 -8 ------- Run | Yrd Mat Mat Mat Combat Hostiles Destroyed 21 | . 3 10 8 Melee 2 | . . . 2 Guns 18 | . 3 10 5 AOE 1 | . . . 1 Classes Destroyed 9 | . 5 3 1 Worker 2 | . . 1 1 Tunneler 1 | . 1 . . Hauler 2 | . 2 . . Recycler 2 | . 1 . 1 Watcher 3 | . 2 . 1 Swarmer 3 | . 3 . . Grunt 13 | . . 7 6 Duelist 1 | . . . 1 Sentry 4 | . . 3 1 Best Kill Streak 7 | . 7 4 3 Combat Bots Only 4 | . 3 4 3 Max Kills in Single Turn 2 | . 1 1 2 Gunslinging . | . . . . Exploded 1 | . . . 1 Melee 1 | . . . 1 Uniques/NPCs Destroyed . | . . . . Combat | -11 -10 -9 -8 -------- Run | Yrd Mat Mat Mat Hostile Shots Fired 249 | . 10 88 151 Missed 54 | . 4 19 31 Damage Taken 2327 | . 32 691 1604 Core 676 | . 5 194 477 Absorbed by Shields . | . . . . Redirected to Shielding 120 | . . 34 86 Ignored by Resistances 681 | . 12 205 464 Regen/Repaired (Parts) 34 | . . 34 . Core Remaining (%) 83 | 100 98 51 . Volleys Fired 137 | . 30 57 50 Largest 2 | . 2 2 1 Hottest 65 | . 40 60 65 Shots Fired 212 | . 60 102 50 Gun 210 | . 60 102 48 Cannon . | . . . . Launcher 2 | . . . 2 Special . | . . . . Kinetic 173 | . 60 88 25 Thermal 31 | . . 14 17 Explosive 2 | . . . 2 Electromagnetic 6 | . . . 6 Robot Hit Streak 47 | . 13 22 47 Robot Miss Streak 2 | . 2 1 1 Penetration Max . | . . . . Secondary Targets 3 | . . 3 . Max Gunslinging Chain 1 | . . 1 . Shots Hit Robots 180 | . 45 86 49 Core Hits 84 | . 20 31 33 Critical Kills . | . . . . Critical Parts Destroyed 2 | . . 2 . Critical Strikes 2 | . . 2 . Destroy 2 | . . 2 . Melee Attacks 2 | . . . 2 Impact 2 | . . . 2 Slashing . | . . . . Piercing . | . . . . Sneak Attacks . | . . . . Combat Hostiles . | . . . . Follow-up Attacks . | . . . . Damage Inflicted 2338 | . 442 728 1168 Guns 1745 | . 442 728 575 Cannons . | . . . . Explosions 520 | . . . 520 Melee 73 | . . . 73 Ramming . | . . . . Kinetic 1246 | . 442 605 199 Thermal 397 | . . 123 274 Explosive 520 | . . . 520 Electromagnetic 102 | . . . 102 Impact 73 | . . . 73 Slashing . | . . . . Piercing . | . . . . Highest Corruption . | . . . . Average Corruption . | . . . . Corruption Purged . | . . . . Corruption Blocked . | . . . . Overload Shots . | . . . . Overflow Damage . | . . . . Projectiles . | . . . . Explosions . | . . . . Melee . | . . . . Knockbacks . | . . . . Impact . | . . . . Kinetic . | . . . . Secondary . | . . . . Self-Inflicted Damage 19 | . . . 19 Shots 2 | . . . 2 Rammed . | . . . . Targets Rammed . | . . . . Kicked . | . . . . Crushed . | . . . . Highest Temperature 208 | . . 47 208 Average Temperature 36 | . . 15 55 Received Heat Transfer 1620 | . . 438 1182 Siege Activations . | . . . . Robots Corrupted . | . . . . Combat Hostiles . | . . . . Parts Fried 1 | . . . 1 Impact Corruptions . | . . . . Robots Melted . | . . . . Combat Hostiles . | . . . . Parts Melted 1 | . . . 1 Heat Transferred 904 | . . 275 629 Parts Sabotaged . | . . . . Parts Stolen . | . . . . Parts Stripped . | . . . . Power Chain Reactions . | . . . . Alert | -11 -10 -9 -8 ------- Run | Yrd Mat Mat Mat Peak Influence 277 | . 138 277 166 Initial 49 | . . 49 2 Average 137 | . 111 165 102 Maximum Alert Level 1 | . . 1 . Low Security (%) 81 | 100 100 67 100 Level 1 18 | . . 32 . Level 2 . | . . . . Level 3 . | . . . . Level 4 . | . . . . Level 5 . | . . . . High Security . | . . . . Max Security . | . . . . Squads Dispatched 4 | . . 1 3 Investigation . | . . . . Extermination . | . . . . Reinforcement 4 | . . 1 3 Assault . | . . . . Garrison . | . . . . Intercept . | . . . . Searches Triggered . | . . . . Construction Impeded . | . . . . Haulers Reinforced . | . . . . Active Scanning Responses . | . . . . Cargo Convoy Interrupts . | . . . . Stealth | -11 -10 -9 -8 --------- Run | Yrd Mat Mat Mat Distress Signals 4 | . 1 1 2 Communications Jammed . | . . . . Distress Signals . | . . . . Times Spotted 42 | . 6 14 22 Peak Tracking Total 10 | . 3 6 10 Tactical Retreats 6 | . . 3 3 Traps | -11 -10 -9 -8 ------- Run | Yrd Mat Mat Mat Traps Triggered . | . . . . Indirectly . | . . . . Trap Hack Attempts . | . . . . Triggered . | . . . . Disarmed . | . . . . Reprogrammed . | . . . . Reused . | . . . . Traps Extracted . | . . . . Installed . | . . . . Triggered . | . . . . Machines | -11 -10 -9 -8 ---------- Run | Yrd Mat Mat Mat Machines Disabled . | . . . . Max in Single Turn . | . . . . Machines Repaired . | . . . . Machines Dismantled . | . . . . Machines Sabotaged . | . . . . Overloaded Fab Kills . | . . . . Hacking | -11 -10 -9 -8 --------- Run | Yrd Mat Mat Mat Machines Accessed 2 | . . 2 . Terminals . | . . . . Fabricators . | . . . . Repair Stations 1 | . . 1 . Recycling Units . | . . . . Scanalyzers 1 | . . 1 . Garrison Access . | . . . . Total Hacks 6 | . . 6 . Successful 4 | . . 4 . Failed 2 | . . 2 . Catastrophic . | . . . . Database Lockouts . | . . . . Manual . | . . . . Terminals . | . . . . Fabricators . | . . . . Repair Stations 2 | . . 2 . Recycling Units . | . . . . Scanalyzers 4 | . . 4 . Garrison Access . | . . . . Terminal Hacks . | . . . . Fabricator Hacks . | . . . . Repair Station Hacks 2 | . . 2 . Scan Component 1 | . . 1 . Repair 1 | . . 1 . Recycling Unit Hacks . | . . . . Scanalyzer 2 | . . 2 . Insert Component 1 | . . 1 . Analyze 1 | . . 1 . Garrison Access Hacks . | . . . . Unauthorized Hacks . | . . . . Terminals . | . . . . Fabricators . | . . . . Repair Stations . | . . . . Recycling Units . | . . . . Scanalyzers . | . . . . Garrison Access . | . . . . Data Cores Recovered . | . . . . Used . | . . . . Hacking Detections 2 | . . 2 . Full Trace Events . | . . . . Feedback Events . | . . . . Feedback Blocked . | . . . . Robot Schematics Acquired . | . . . . Robots Built . | . . . . Authchips . | . . . . Time . | . . . . Total Robot Build Rating . | . . . . Part Schematics Acquired 1 | . . 1 . Parts Built . | . . . . Authchips . | . . . . Time . | . . . . Total Part Build Rating . | . . . . Parts Repaired 1 | . . 1 . Time 26 | . . 26 . Parts Recycled . | . . . . Recycled Matter . | . . . . Retrieved Matter . | . . . . Retrieved Components . | . . . . Parts Scanalyzed 1 | . . 1 . Part Schematics Acquired 1 | . . 1 . Parts Damaged . | . . . . Bothacking | -11 -10 -9 -8 ------------ Run | Yrd Mat Mat Mat Used RIF Installer . | . . . . Robots Hacked . | . . . . Non-combat . | . . . . Combat . | . . . . Robot Hacks Applied . | . . . . Relay Couplers Released . | . . . . Fabnet Peak Effective % . | . . . . Robots Rewired . | . . . . Allies Hacked . | . . . . Hacks Repelled . | . . . . Allies | -11 -10 -9 -8 -------- Run | Yrd Mat Mat Mat Total Allies . | . . . . Largest Group . | . . . . Highest-Rated Group . | . . . . Highest-Rated Ally . | . . . . Total Orders . | . . . . Ally Attacks . | . . . . Total Damage . | . . . . Kills . | . . . . Allies Corrupted . | . . . . Allies Melted . | . . . . Intel | -11 -10 -9 -8 ------- Run | Yrd Mat Mat Mat Robot Analysis Total . | . . . . Derelict Logs Recovered . | . . . . Drone Launches . | . . . . Drone Recoveries . | . . . . Exploration | -11 -10 -9 -8 ------------- Run | Yrd Mat Mat Mat Turns Passed 1652 | 37 311 935 369 Spaces Moved 742 | 34 233 361 114 Core 6 | 5 . . 1 Treads . | . . . . Legs 383 | . . 270 113 Wheels 353 | 29 233 91 . Hover . | . . . . Flight . | . . . . Fastest Speed 50 | 50 80 105 190 Average Speed 144 | 75 88 169 202 Slowest Speed 330 | 80 105 190 330 Overloaded Moves . | . . . . Propulsion Burnouts . | . . . . Robots Hopped . | . . . . Cave-ins Triggered . | . . . . Exploration Rate (%) 22 | 4 42 29 14 Regions Visited 3 Branch Regions . Pre-discovered Areas . | . . . . Known Exits Taken 1 | . . 1 . Unknown Exits Taken 2 | 1 1 . . Scrap Searched . | . . . . Spaces Dug . | . . . . Terrain Destroyed 6 | . . . 6 Melee . | . . . . Projectile . | . . . . AOE 6 | . . . 6 Terrain Rammed . | . . . . Walls Destroyed . | . . . . Machines Disabled . | . . . . Actions | -11 -10 -9 -8 --------- Run | Yrd Mat Mat Mat Total 1139 | 42 286 605 206 Wait 152 | . . 151 1 Move 739 | 33 232 360 114 Hop . | . . . . Pick Up 41 | 3 11 17 10 Fast Attach 13 | 5 3 . 5 Attach 13 | 1 . 6 6 Detach . | . . . . Swap 15 | . 4 5 6 Drop 27 | . 6 9 12 Fire 137 | . 30 57 50 Melee 2 | . . . 2 Ram . | . . . . Kick . | . . . . Crush . | . . . . Escape Stasis . | . . . . Rewire . | . . . . Trap . | . . . . Miscellaneous . | . . . . Route ------- -11/Scrapyard -10/Materials -9/Materials -8/Materials History --------- Turn | Location | Event 11 | -11/Scrapyard | Discovered new exit (range 15) 38 | -11/Scrapyard | Entered Materials 296 | -10/Materials | Discovered new exit (range 14) 333 | -10/Materials | Build established: Mutant 349 | -10/Materials | Entered another Materials area 349 | -9/Materials | Evolved 2 slots: Utility x2 838 | -9/Materials | Build established: Scavenger-Mutant 949 | -9/Materials | Repaired Propulsion Shielding 1244 | -9/Materials | Discovered new exit (range 15) 1282 | -9/Materials | Identified exit to Materials 1284 | -9/Materials | Entered another Materials area 1284 | -8/Materials | Evolved 2 slots: Propulsion x2 1411 | -8/Materials | Lost 4 parts (1p2n1w) 1642 | -8/Materials | Core integrity fell below 50% 1651 | -8/Materials | Core integrity fell below 20% 1653 | -8/Materials | Self-destructed Last Messages --------------- Chamber. 01634_ Critical hit (Burn: +37). 01634_ Shock Rifle destroyed. 01635_ Lgt. Nuclear Core destroyed. 01638_ K-01 Serf cleans the Material Compactor. 01639_ Critical hit (Burn: +37). 01641_ Acquired Grenade Launcher. 01642_ Aluminum Leg destroyed. 01644_ Grenade Launcher destroyed. 01644_ K-01 Serf cleans the Material Compactor. 01645_ L-31 Rogue destroyed. 01645_ Critical hit (Burn: +37). 01646_ Power Maul destroyed. 01646_ Critical hit (Burn: +37). 01647_ K-01 Serf collects debris. 01650_ Acquired Grenade Launcher. 01651_ G-47 Trooper destroyed. 01651_ K-01 Serf destroyed. 01653_ U-05 Engineer builds a Wall. 01653_ Grenade Launcher destroyed. Map ----- +----------------------------------------------------+ | ?????????????????????????????????????????????????? | | ?????????????????????????????????????????????????? | | ?????????????????????????????????????????????????? | | ?????????????????????????????????????????????????? | | ?????????????????????????????????????????????????? | | ?????????????????????????????????????????????????? | | ?????????????????????????????????????????????????? | | ?????????????????????????????????????????????????? | | ?????????????????????????????????????????????????? | | ???????????????????????????????? ??????????????? | | ???????????????????????????????? #?????????????? | | ???????????????????????????????? #?????????????? | | ???????????????????????????????? #?????????????? | | ???????????????????????????????? #?????????????? | | ???????????????????????????????? #?????????????? | | ???????????????????????????????? #?????????????? | | ???????????????????????????????# #?????????????? | | ???????????????????????????????# #?????????????? | | ???????????????????????????????# #?????????????? | | ?????????????????????########### #???? ????????? | | ?????????????????????# #???? ????????? | | ?????????????????????# g # #####/##??????? | | ?????????????????????# g g u / #??????? | | ?????????????????????# =% %g ^k #??????? | | ?????????????????????# ! g """ #??????? | | ?????????????????????# @ g """"" +??????? | | ?????????????????????# %g """"" #??????? | | ?????????????????????# * k# ^""""" #??????? | | ?????????????????????########### """ ######## | | ??????????????????????### ! | | ???????????????????# | | ?????????????????????#### = | | ????????????????????????# ########"T"# #### | | ????????????????????????# ????????##### [ #??# | | ????????????????????????# ?????????????#! !!!!#??# | | ????????????????????????#??????????????#!!!!!!#??# | | ???????????????????????????????????????########??# | | ?????????????????????????????????????????????????? | | ?????????????????????????????????????????????????? | | ?????????????????????????????????????????????????? | | ?????????????????????????????????????????????????# | | ?????????????????????????????????????????????????# | | ?????????????????????????????????????????????????# | | ?????????????????????????????????????????????????# | | ?????????????????????????????????????????????????# | | ?????????????????????????????????????????????????? | | ?????????????????????????????????????????????????? | | ?????????????????????????????????????????????????? | | ?????????????????????????????????????????????????? | | ?????????????????????????????????????????????????? | +----------------------------------------------------+ Best States ------------- Heat Dissipation 31 Energy Generation 14 Energy Capacity 265 Matter Stores 300 Matter Capacity 300 Sight Range 16 Terrain Scan Density 10 Additional Mass Support 9 Resistance: KI 20 Resistance: TH 20 Resistance: EX 20 Resistance: EM 20 Resistance: I 20 Resistance: S 20 Resistance: P 20 Propulsion Shielding 33 Evasion (%) 44 Offensive Hacking 10 Item Schematics ----------------- Imp. Heat Sink | -9/Materials | Scanalyzed Robot Schematics ------------------ None Fabricated ------------ Nothing Alien Tech Used ----------------- None Achievements -------------- None Challenges ------------ None Game ------ Seed CompositeLatentGravjet Manual? 0 Play Time 00:11:12 Cumulative 100.9 hours Start 2024.07.29 @ 13:13:28 End 2024.07.29 @ 13:24:15 Sessions 1 Manual Loads 0 Difficulty Adventurer Special Mode None Game No. 138 Rogue 0 Adventurer 138 Explorer 0 Win Type - Total 0 Types 0/0/0/0/0/0/0/0/0 Lore% 46 Gallery% 50 Achievement% 37 Wizard Run 0 Options --------- Layout 2 ASCII 0 Keyboard 0 Movement Mouse Keybinds 0 Fullscreen 2 Font 48/Terminus Map View 50x44 Zoom Use 0% Tactical HUD 1 Map Filters NONE Filters NONE Steam 1 RUN: 118f59ec-0339-4d37-b9d1-85492b023b58